[Event "Titled Tuesday Blitz July 27 2021"]
[White "Paravyan, David"]
[Black "Zhigalko, Sergei"]
[WhiteFideId "4194985"]
[BlackFideId "13502956"]
[WhiteElo "2562"]
[BlackElo "2662"]
[Result "0-1"]
[Round "06"]
[TimeControl "180+1"]
[Date "2021.07.27"]
[WhiteClock "0:00:01"]
[BlackClock "0:00:05"]

1. e4 {[%clk 0:02:57]}  c5 {[%clk 0:03:00]} 2. Nf3 {[%clk 0:02:57]}  Nc6 {[%clk 0:03:00]} 3. Nc3 {[%clk 0:02:56]}  Nf6 {[%clk 0:03:01]} 4. d4 {[%clk 0:02:55]}  cxd4 {[%clk 0:03:01]} 5. Nxd4 {[%clk 0:02:56]}  e5 {[%clk 0:03:02]} 6. Ndb5 {[%clk 0:02:56]}  d6 {[%clk 0:03:02]} 7. Bg5 {[%clk 0:02:56]}  a6 {[%clk 0:03:03]} 8. Na3 {[%clk 0:02:56]}  b5 {[%clk 0:03:03]} 9. Bxf6 {[%clk 0:02:56]}  gxf6 {[%clk 0:03:04]} 10. Nd5 {[%clk 0:02:57]}  Bg7 {[%clk 0:03:04]} 11. g3 {[%clk 0:02:55]}  f5 {[%clk 0:03:03]} 12. Bg2 {[%clk 0:02:55]}  fxe4 {[%clk 0:03:04]} 13. c3 {[%clk 0:02:29]}  O-O {[%clk 0:02:40]} 14. Bxe4 {[%clk 0:02:29]}  f5 {[%clk 0:02:40]} 15. Bg2 {[%clk 0:02:29]}  Be6 {[%clk 0:02:39]} 16. O-O {[%clk 0:02:27]}  Rb8 {[%clk 0:02:32]} 17. Nc2 {[%clk 0:02:26]}  a5 {[%clk 0:02:30]} 18. Nf4 {[%clk 0:02:22]}  exf4 {[%clk 0:02:26]} 19. Bxc6 {[%clk 0:02:22]}  fxg3 {[%clk 0:02:27]} 20. hxg3 {[%clk 0:02:09]}  f4 {[%clk 0:02:03]} 21. Bd5 {[%clk 0:02:07]}  Qd7 {[%clk 0:01:25]} 22. Qg4 {[%clk 0:02:06]}  Kh8 {[%clk 0:00:26]} 23. Bxe6 {[%clk 0:02:04]}  Qa7 {[%clk 0:00:25]} 24. Kg2 {[%clk 0:01:41]}  Be5 {[%clk 0:00:23]} 25. Rh1 {[%clk 0:01:31]}  fxg3 {[%clk 0:00:21]} 26. Nd4 {[%clk 0:00:23]}  Rxf2+ {[%clk 0:00:20]} 27. Kg1 {[%clk 0:00:21]}  Rbf8 {[%clk 0:00:19]} 28. Bd5 {[%clk 0:00:10]}  R2f4 {[%clk 0:00:05]} 29. Qg6 {[%clk 0:00:02]}  Bxd4+ {[%clk 0:00:04]} 30. Kg2 {[%clk 0:00:02]}  Rf2+ {[%clk 0:00:04]} 31. Kh3 {[%clk 0:00:01]}  hxg6 {[%clk 0:00:05]} 0-1


[Site "https://www.chess.com"]

[Event "Titled Tuesday Blitz July 27 2021"]
[White "Parkhov, Yair"]
[Black "Siva Mahadevan"]
[WhiteFideId "2813408"]
[BlackFideId "25043153"]
[WhiteElo "2131"]
[BlackElo "2203"]
[Result "0-1"]
[Round "06"]
[TimeControl "180+1"]
[Date "2021.07.27"]
[WhiteClock "0:00:15"]
[BlackClock "0:01:35"]

1. d4 {[%clk 0:03:00]}  Nf6 {[%clk 0:03:00]} 2. c4 {[%clk 0:02:58]}  e6 {[%clk 0:03:00]} 3. Nc3 {[%clk 0:02:57]}  c5 {[%clk 0:03:00]} 4. d5 {[%clk 0:02:57]}  exd5 {[%clk 0:03:01]} 5. cxd5 {[%clk 0:02:58]}  d6 {[%clk 0:03:02]} 6. Bf4 {[%clk 0:02:45]}  g6 {[%clk 0:03:01]} 7. e3 {[%clk 0:02:44]}  a6 {[%clk 0:02:58]} 8. a4 {[%clk 0:02:43]}  Bg7 {[%clk 0:02:58]} 9. h3 {[%clk 0:02:43]}  O-O {[%clk 0:02:58]} 10. Nf3 {[%clk 0:02:43]}  Qe7 {[%clk 0:02:59]} 11. Be2 {[%clk 0:02:41]}  Nbd7 {[%clk 0:02:59]} 12. O-O {[%clk 0:02:41]}  Rb8 {[%clk 0:02:59]} 13. Qc2 {[%clk 0:02:32]}  Ne8 {[%clk 0:02:59]} 14. Qe4 {[%clk 0:02:20]}  Ne5 {[%clk 0:02:26]} 15. Nxe5 {[%clk 0:01:56]}  dxe5 {[%clk 0:02:27]} 16. Bh2 {[%clk 0:01:56]}  Nd6 {[%clk 0:02:26]} 17. Qc2 {[%clk 0:01:55]}  f5 {[%clk 0:02:20]} 18. a5 {[%clk 0:01:52]}  f4 {[%clk 0:02:20]} 19. exf4 {[%clk 0:01:44]}  exf4 {[%clk 0:02:20]} 20. Bf3 {[%clk 0:01:45]}  Qh4 {[%clk 0:02:10]} 21. Rfe1 {[%clk 0:01:31]}  Bf5 {[%clk 0:01:48]} 22. Qb3 {[%clk 0:01:20]}  Bd4 {[%clk 0:01:42]} 23. Re2 {[%clk 0:01:01]}  Rbe8 {[%clk 0:01:36]} 24. Rf1 {[%clk 0:00:58]}  Bd3 {[%clk 0:01:34]} 25. Rxe8 {[%clk 0:00:57]}  Rxe8 {[%clk 0:01:35]} 26. Qd1 {[%clk 0:00:14]}  Bxf1 {[%clk 0:01:34]} 27. Qxf1 {[%clk 0:00:15]}  Qxf2+ {[%clk 0:01:35]} 0-1


[Site "https://www.chess.com"]

[Event "Titled Tuesday Blitz July 27 2021"]
[White "Perez Ponsa, Federico"]
[Black "Salinas Herrera, Pablo"]
[WhiteFideId "117927"]
[BlackFideId "3407128"]
[WhiteElo "2672"]
[BlackElo "2541"]
[Result "1-0"]
[Round "06"]
[TimeControl "180+1"]
[Date "2021.07.27"]
[WhiteClock "0:00:05"]
[BlackClock "0:00:01"]

1. d4 {[%clk 0:02:48]}  d5 {[%clk 0:02:59]} 2. c4 {[%clk 0:02:48]}  e6 {[%clk 0:03:00]} 3. Nc3 {[%clk 0:02:48]}  Nf6 {[%clk 0:03:00]} 4. cxd5 {[%clk 0:02:48]}  exd5 {[%clk 0:03:01]} 5. Bg5 {[%clk 0:02:47]}  c6 {[%clk 0:03:01]} 6. e3 {[%clk 0:02:48]}  h6 {[%clk 0:03:02]} 7. Bh4 {[%clk 0:02:47]}  Bd6 {[%clk 0:03:02]} 8. Bd3 {[%clk 0:02:46]}  O-O {[%clk 0:03:02]} 9. Nf3 {[%clk 0:02:43]}  Be6 {[%clk 0:03:02]} 10. O-O {[%clk 0:02:42]}  Nbd7 {[%clk 0:03:02]} 11. Rb1 {[%clk 0:02:42]}  a5 {[%clk 0:03:02]} 12. a3 {[%clk 0:02:41]}  Re8 {[%clk 0:03:02]} 13. Qc2 {[%clk 0:02:41]}  Qb8 {[%clk 0:02:58]} 14. Rfc1 {[%clk 0:02:36]}  Bg4 {[%clk 0:02:55]} 15. Be2 {[%clk 0:02:34]}  Ne4 {[%clk 0:02:52]} 16. h3 {[%clk 0:02:31]}  Bf5 {[%clk 0:02:50]} 17. Bd3 {[%clk 0:02:27]}  g5 {[%clk 0:02:50]} 18. Bg3 {[%clk 0:02:23]}  Bxg3 {[%clk 0:02:50]} 19. fxg3 {[%clk 0:02:23]}  Qxg3 {[%clk 0:02:50]} 20. Ne2 {[%clk 0:02:14]}  Qf2+ {[%clk 0:02:49]} 21. Kh2 {[%clk 0:02:12]}  Qxe3 {[%clk 0:02:47]} 22. Rf1 {[%clk 0:02:12]}  Bg6 {[%clk 0:02:36]} 23. Rbe1 {[%clk 0:02:11]}  Re6 {[%clk 0:02:05]} 24. g3 {[%clk 0:02:07]}  Nf2 {[%clk 0:01:53]} 25. Bxg6 {[%clk 0:01:56]}  Qxf3 {[%clk 0:01:47]} 26. Bf5 {[%clk 0:01:20]}  Rae8 {[%clk 0:00:22]} 27. Bxe6 {[%clk 0:01:15]}  Rxe6 {[%clk 0:00:23]} 28. Nc3 {[%clk 0:01:07]}  Rxe1 {[%clk 0:00:18]} 29. Rxe1 {[%clk 0:01:08]}  Nf6 {[%clk 0:00:14]} 30. Qe2 {[%clk 0:01:01]}  Qxe2 {[%clk 0:00:13]} 31. Rxe2 {[%clk 0:01:01]}  N2e4 {[%clk 0:00:14]} 32. Nd1 {[%clk 0:00:49]}  Kg7 {[%clk 0:00:14]} 33. Ne3 {[%clk 0:00:46]}  Kg6 {[%clk 0:00:14]} 34. Kg2 {[%clk 0:00:46]}  h5 {[%clk 0:00:14]} 35. Re1 {[%clk 0:00:42]}  Ne8 {[%clk 0:00:14]} 36. Nc4 {[%clk 0:00:38]}  dxc4 {[%clk 0:00:09]} 37. Rxe4 {[%clk 0:00:38]}  Nd6 {[%clk 0:00:10]} 38. Re7 {[%clk 0:00:38]}  Kf6 {[%clk 0:00:08]} 39. Re5 {[%clk 0:00:36]}  Nb5 {[%clk 0:00:08]} 40. Rc5 {[%clk 0:00:36]}  Nxd4 {[%clk 0:00:07]} 41. Rxc4 {[%clk 0:00:36]}  Ne6 {[%clk 0:00:07]} 42. Kf3 {[%clk 0:00:32]}  Ke5 {[%clk 0:00:07]} 43. Ke3 {[%clk 0:00:31]}  Kd5 {[%clk 0:00:06]} 44. Rc1 {[%clk 0:00:31]}  f5 {[%clk 0:00:06]} 45. Rd1+ {[%clk 0:00:27]}  Ke5 {[%clk 0:00:06]} 46. Rd7 {[%clk 0:00:27]}  b6 {[%clk 0:00:07]} 47. Rh7 {[%clk 0:00:27]}  f4+ {[%clk 0:00:06]} 48. gxf4+ {[%clk 0:00:27]}  Nxf4 {[%clk 0:00:07]} 49. Kf3 {[%clk 0:00:20]}  c5 {[%clk 0:00:04]} 50. Kg3 {[%clk 0:00:13]}  b5 {[%clk 0:00:02]} 51. Rb7 {[%clk 0:00:10]}  b4 {[%clk 0:00:02]} 52. Rb5 {[%clk 0:00:10]}  Kd4 {[%clk 0:00:02]} 53. Rxa5 {[%clk 0:00:10]}  Ne2+ {[%clk 0:00:02]} 54. Kf2 {[%clk 0:00:10]}  Nc1 {[%clk 0:00:03]} 55. axb4 {[%clk 0:00:05]}  cxb4 {[%clk 0:00:04]} 56. Rxg5 {[%clk 0:00:05]}  Nd3+ {[%clk 0:00:04]} 57. Ke2 {[%clk 0:00:04]}  Nxb2 {[%clk 0:00:05]} 58. Rxh5 {[%clk 0:00:04]}  Nc4 {[%clk 0:00:05]} 59. Rh8 {[%clk 0:00:04]}  b3 {[%clk 0:00:05]} 60. Rb8 {[%clk 0:00:04]}  b2 {[%clk 0:00:05]} 61. h4 {[%clk 0:00:05]}  Ke5 {[%clk 0:00:06]} 62. h5 {[%clk 0:00:05]}  Kf6 {[%clk 0:00:06]} 63. Kd3 {[%clk 0:00:06]}  Ne5+ {[%clk 0:00:04]} 64. Kc3 {[%clk 0:00:06]}  Ng4 {[%clk 0:00:03]} 65. Rb5 {[%clk 0:00:04]}  Ne3 {[%clk 0:00:01]} 66. Kxb2 {[%clk 0:00:03]}  Kg7 {[%clk 0:00:01]} 67. Kc3 {[%clk 0:00:03]}  Kh6 {[%clk 0:00:02]} 68. Kd3 {[%clk 0:00:03]}  Ng4 {[%clk 0:00:03]} 69. Ke4 {[%clk 0:00:02]}  Nf6+ {[%clk 0:00:03]} 70. Kf5 {[%clk 0:00:03]}  Nxh5 {[%clk 0:00:04]} 71. Rb1 {[%clk 0:00:03]}  Ng7+ {[%clk 0:00:04]} 72. Kf6 {[%clk 0:00:03]}  Nh5+ {[%clk 0:00:05]} 73. Kf7 {[%clk 0:00:03]}  Kg5 {[%clk 0:00:05]} 74. Rb5+ {[%clk 0:00:03]}  Kg4 {[%clk 0:00:05]} 75. Kg6 {[%clk 0:00:04]}  Nf4+ {[%clk 0:00:05]} 76. Kf6 {[%clk 0:00:04]}  Nh5+ {[%clk 0:00:06]} 77. Ke5 {[%clk 0:00:04]}  Kg5 {[%clk 0:00:06]} 78. Rb1 {[%clk 0:00:04]}  Nf6 {[%clk 0:00:06]} 79. Rg1+ {[%clk 0:00:05]}  Ng4+ {[%clk 0:00:07]} 80. Ke4 {[%clk 0:00:06]}  Kh5 {[%clk 0:00:02]} 81. Kf4 {[%clk 0:00:04]}  Nh6 {[%clk 0:00:02]} 82. Rg5+ {[%clk 0:00:05]}  Kh4 {[%clk 0:00:02]} 83. Ra5 {[%clk 0:00:04]}  Nf7 {[%clk 0:00:02]} 84. Ra6 {[%clk 0:00:03]}  Kh5 {[%clk 0:00:02]} 85. Rf6 {[%clk 0:00:02]}  Nh6 {[%clk 0:00:02]} 86. Re6 {[%clk 0:00:02]}  Ng4 {[%clk 0:00:02]} 87. Re1 {[%clk 0:00:02]}  Nh6 {[%clk 0:00:03]} 88. Rg1 {[%clk 0:00:02]}  Nf7 {[%clk 0:00:02]} 89. Kf5 {[%clk 0:00:02]}  Nh6+ {[%clk 0:00:03]} 90. Kf6 {[%clk 0:00:02]}  Ng4+ {[%clk 0:00:03]} 91. Kf5 {[%clk 0:00:02]}  Nh6+ {[%clk 0:00:04]} 92. Ke4 {[%clk 0:00:03]}  Ng4 {[%clk 0:00:03]} 93. Rg2 {[%clk 0:00:03]}  Nh6 {[%clk 0:00:03]} 94. Kf4 {[%clk 0:00:03]}  Nf7 {[%clk 0:00:03]} 95. Rg3 {[%clk 0:00:02]}  Nh6 {[%clk 0:00:03]} 96. Rg5+ {[%clk 0:00:03]}  Kh4 {[%clk 0:00:03]} 97. Rb5 {[%clk 0:00:04]}  Ng4 {[%clk 0:00:04]} 98. Rb4 {[%clk 0:00:04]}  Nf6 {[%clk 0:00:04]} 99. Ra4 {[%clk 0:00:05]}  Kh5 {[%clk 0:00:03]} 100. Kf5 {[%clk 0:00:05]}  Ng8 {[%clk 0:00:03]} 101. Ra1 {[%clk 0:00:05]}  Nh6+ {[%clk 0:00:03]} 102. Kf4 {[%clk 0:00:05]}  Kg6 {[%clk 0:00:03]} 103. Ra6+ {[%clk 0:00:06]}  Kh5 {[%clk 0:00:04]} 104. Rc6 {[%clk 0:00:06]}  Ng4 {[%clk 0:00:03]} 105. Rc5+ {[%clk 0:00:06]}  Kh4 {[%clk 0:00:04]} 106. Rc1 {[%clk 0:00:07]}  Kh3 {[%clk 0:00:03]} 107. Rc8 {[%clk 0:00:05]}  Nf2 {[%clk 0:00:02]} 108. Kf3 {[%clk 0:00:05]}  Nd3 {[%clk 0:00:01]} 109. Rh8# {[%clk 0:00:05]} 1-0


[Site "https://www.chess.com"]

[Event "Titled Tuesday Blitz July 27 2021"]
[White "Potapova, Margarita"]
[Black "Moroni, Luca Jr"]
[WhiteFideId "14126869"]
[BlackFideId "865834"]
[WhiteElo "2229"]
[BlackElo "2491"]
[Result "0-1"]
[Round "06"]
[TimeControl "180+1"]
[Date "2021.07.27"]
[WhiteClock "0:00:04"]
[BlackClock "0:00:38"]

1. d4 {[%clk 0:03:00]}  g6 {[%clk 0:02:59]} 2. e4 {[%clk 0:03:00]}  Bg7 {[%clk 0:03:00]} 3. Nc3 {[%clk 0:03:01]}  d6 {[%clk 0:03:00]} 4. Be3 {[%clk 0:03:01]}  Nf6 {[%clk 0:03:00]} 5. Qd2 {[%clk 0:02:55]}  O-O {[%clk 0:02:59]} 6. f3 {[%clk 0:02:50]}  e5 {[%clk 0:02:57]} 7. Nge2 {[%clk 0:02:41]}  exd4 {[%clk 0:02:56]} 8. Nxd4 {[%clk 0:02:41]}  d5 {[%clk 0:02:56]} 9. e5 {[%clk 0:02:37]}  Ne8 {[%clk 0:02:55]} 10. f4 {[%clk 0:02:17]}  c5 {[%clk 0:02:23]} 11. Nb3 {[%clk 0:02:13]}  d4 {[%clk 0:02:23]} 12. Nxc5 {[%clk 0:02:13]}  Nc6 {[%clk 0:02:21]} 13. O-O-O {[%clk 0:02:13]}  Bg4 {[%clk 0:01:53]} 14. Be2 {[%clk 0:01:47]}  Bxe2 {[%clk 0:01:48]} 15. Qxe2 {[%clk 0:01:47]}  Qe7 {[%clk 0:01:42]} 16. Rxd4 {[%clk 0:01:31]}  Qxc5 {[%clk 0:01:27]} 17. Rd8 {[%clk 0:01:06]}  Qxe3+ {[%clk 0:01:21]} 18. Qxe3 {[%clk 0:01:07]}  Rxd8 {[%clk 0:01:22]} 19. h4 {[%clk 0:01:03]}  Nc7 {[%clk 0:01:04]} 20. h5 {[%clk 0:00:47]}  Nd5 {[%clk 0:01:04]} 21. Nxd5 {[%clk 0:00:46]}  Rxd5 {[%clk 0:01:05]} 22. hxg6 {[%clk 0:00:44]}  hxg6 {[%clk 0:00:59]} 23. Qh3 {[%clk 0:00:44]}  Rfd8 {[%clk 0:00:53]} 24. e6 {[%clk 0:00:42]}  Nd4 {[%clk 0:00:46]} 25. Qh7+ {[%clk 0:00:21]}  Kf8 {[%clk 0:00:46]} 26. e7+ {[%clk 0:00:21]}  Kxe7 {[%clk 0:00:45]} 27. Re1+ {[%clk 0:00:22]}  Kf8 {[%clk 0:00:41]} 28. c3 {[%clk 0:00:06]}  Rh5 {[%clk 0:00:38]} 29. Qxh5 {[%clk 0:00:04]}  gxh5 {[%clk 0:00:38]} 0-1


[Site "https://www.chess.com"]

[Event "Titled Tuesday Blitz July 27 2021"]
[White "Preotu, Razvan"]
[Black "Bok, Benjamin"]
[WhiteFideId "2613280"]
[BlackFideId "1017063"]
[WhiteElo "2407"]
[BlackElo "2658"]
[Result "1-0"]
[Round "06"]
[TimeControl "180+1"]
[Date "2021.07.27"]
[WhiteClock "0:00:08"]
[BlackClock "0:00:03"]

1. e4 {[%clk 0:03:00]}  c5 {[%clk 0:03:00]} 2. Nf3 {[%clk 0:03:00]}  d6 {[%clk 0:03:00]} 3. Bb5+ {[%clk 0:02:59]}  Nd7 {[%clk 0:03:00]} 4. a4 {[%clk 0:02:57]}  Nf6 {[%clk 0:02:59]} 5. Nc3 {[%clk 0:02:57]}  a6 {[%clk 0:02:59]} 6. Be2 {[%clk 0:02:56]}  b6 {[%clk 0:02:59]} 7. d4 {[%clk 0:02:56]}  cxd4 {[%clk 0:03:00]} 8. Qxd4 {[%clk 0:02:56]}  Bb7 {[%clk 0:03:01]} 9. O-O {[%clk 0:02:54]}  e6 {[%clk 0:03:01]} 10. Rd1 {[%clk 0:02:48]}  Qc7 {[%clk 0:02:48]} 11. Be3 {[%clk 0:02:44]}  Ng4 {[%clk 0:01:59]} 12. Bg5 {[%clk 0:02:44]}  h6 {[%clk 0:01:58]} 13. Bh4 {[%clk 0:02:44]}  Rc8 {[%clk 0:01:46]} 14. Nd2 {[%clk 0:02:32]}  Nge5 {[%clk 0:01:44]} 15. Qe3 {[%clk 0:01:42]}  Qc5 {[%clk 0:01:36]} 16. Qxc5 {[%clk 0:01:38]}  Nxc5 {[%clk 0:01:35]} 17. f3 {[%clk 0:01:18]}  g5 {[%clk 0:01:27]} 18. Bf2 {[%clk 0:01:18]}  Bg7 {[%clk 0:01:27]} 19. Nb3 {[%clk 0:01:18]}  Ke7 {[%clk 0:01:24]} 20. Nd4 {[%clk 0:01:06]}  Rhd8 {[%clk 0:01:14]} 21. Ra3 {[%clk 0:01:05]}  Ng6 {[%clk 0:00:56]} 22. Be3 {[%clk 0:00:56]}  Bf6 {[%clk 0:00:44]} 23. Kf2 {[%clk 0:00:56]}  h5 {[%clk 0:00:40]} 24. h3 {[%clk 0:00:52]}  h4 {[%clk 0:00:38]} 25. Rd2 {[%clk 0:00:48]}  Nf4 {[%clk 0:00:36]} 26. Bf1 {[%clk 0:00:47]}  Be5 {[%clk 0:00:35]} 27. b4 {[%clk 0:00:44]}  Nd7 {[%clk 0:00:34]} 28. Nce2 {[%clk 0:00:38]}  f6 {[%clk 0:00:31]} 29. c4 {[%clk 0:00:32]}  Rc7 {[%clk 0:00:20]} 30. Kg1 {[%clk 0:00:25]}  Rdc8 {[%clk 0:00:18]} 31. Nxf4 {[%clk 0:00:25]}  Bxf4 {[%clk 0:00:17]} 32. Bxf4 {[%clk 0:00:25]}  gxf4 {[%clk 0:00:18]} 33. a5 {[%clk 0:00:20]}  bxa5 {[%clk 0:00:16]} 34. Rxa5 {[%clk 0:00:21]}  Ne5 {[%clk 0:00:15]} 35. b5 {[%clk 0:00:19]}  Nxc4 {[%clk 0:00:10]} 36. Bxc4 {[%clk 0:00:19]}  Rxc4 {[%clk 0:00:11]} 37. bxa6 {[%clk 0:00:19]}  Ba8 {[%clk 0:00:11]} 38. Rh5 {[%clk 0:00:19]}  Kf7 {[%clk 0:00:04]} 39. Rxh4 {[%clk 0:00:18]}  Ra4 {[%clk 0:00:03]} 40. Rh7+ {[%clk 0:00:16]}  Kg6 {[%clk 0:00:04]} 41. Ra7 {[%clk 0:00:15]}  Rc1+ {[%clk 0:00:03]} 42. Kf2 {[%clk 0:00:11]}  Bc6 {[%clk 0:00:03]} 43. Nxe6 {[%clk 0:00:08]} 1-0


[Site "https://www.chess.com"]

[Event "Titled Tuesday Blitz July 27 2021"]
[White "Priasmoro, Novendra"]
[Black "Jeet, Jain"]
[WhiteFideId "7105029"]
[BlackFideId "5073022"]
[WhiteElo "2309"]
[BlackElo "2085"]
[Result "1-0"]
[Round "06"]
[TimeControl "180+1"]
[Date "2021.07.27"]
[WhiteClock "0:00:52"]
[BlackClock "0:00:11"]

1. e4 {[%clk 0:03:00]}  e5 {[%clk 0:02:59]} 2. Nf3 {[%clk 0:03:00]}  Nc6 {[%clk 0:03:00]} 3. Bb5 {[%clk 0:03:01]}  a6 {[%clk 0:03:00]} 4. Ba4 {[%clk 0:03:01]}  Nf6 {[%clk 0:03:00]} 5. O-O {[%clk 0:03:02]}  Be7 {[%clk 0:03:00]} 6. Re1 {[%clk 0:03:01]}  b5 {[%clk 0:03:00]} 7. Bb3 {[%clk 0:03:02]}  d6 {[%clk 0:03:01]} 8. c3 {[%clk 0:03:02]}  O-O {[%clk 0:03:01]} 9. h3 {[%clk 0:03:02]}  Na5 {[%clk 0:03:01]} 10. Bc2 {[%clk 0:03:03]}  c5 {[%clk 0:03:02]} 11. d4 {[%clk 0:03:03]}  Qc7 {[%clk 0:03:02]} 12. Nbd2 {[%clk 0:03:03]}  Bd7 {[%clk 0:03:02]} 13. Nf1 {[%clk 0:03:00]}  Nc4 {[%clk 0:03:02]} 14. b3 {[%clk 0:02:59]}  Nb6 {[%clk 0:03:03]} 15. d5 {[%clk 0:02:59]}  c4 {[%clk 0:03:00]} 16. Bd2 {[%clk 0:02:47]}  Rfc8 {[%clk 0:03:00]} 17. Ne3 {[%clk 0:02:45]}  a5 {[%clk 0:02:55]} 18. Nh4 {[%clk 0:02:31]}  g6 {[%clk 0:02:52]} 19. Qf3 {[%clk 0:02:22]}  cxb3 {[%clk 0:02:44]} 20. axb3 {[%clk 0:02:23]}  a4 {[%clk 0:02:45]} 21. g4 {[%clk 0:02:06]}  axb3 {[%clk 0:02:36]} 22. Bxb3 {[%clk 0:02:05]}  Nc4 {[%clk 0:02:28]} 23. Bxc4 {[%clk 0:01:46]}  bxc4 {[%clk 0:02:28]} 24. g5 {[%clk 0:01:45]}  Nh5 {[%clk 0:02:23]} 25. Nef5 {[%clk 0:01:42]}  Bf8 {[%clk 0:02:20]} 26. Ng2 {[%clk 0:01:20]}  Rxa1 {[%clk 0:02:05]} 27. Rxa1 {[%clk 0:01:21]}  Rb8 {[%clk 0:02:05]} 28. Be3 {[%clk 0:01:15]}  Rb2 {[%clk 0:01:54]} 29. Ra8 {[%clk 0:01:14]}  Rb8 {[%clk 0:01:52]} 30. Ra7 {[%clk 0:01:14]}  Rb7 {[%clk 0:01:52]} 31. Ra6 {[%clk 0:01:13]}  Rb1+ {[%clk 0:01:46]} 32. Kh2 {[%clk 0:01:13]}  Bxf5 {[%clk 0:01:42]} 33. exf5 {[%clk 0:01:13]}  Ng7 {[%clk 0:01:42]} 34. Nh4 {[%clk 0:01:06]}  Qc8 {[%clk 0:01:24]} 35. Rc6 {[%clk 0:01:05]}  Qd7 {[%clk 0:00:57]} 36. f6 {[%clk 0:01:05]}  Nh5 {[%clk 0:00:48]} 37. Qg4 {[%clk 0:01:03]}  Qb7 {[%clk 0:00:21]} 38. Qc8 {[%clk 0:01:02]}  h6 {[%clk 0:00:21]} 39. Qe8 {[%clk 0:00:51]}  Qb8 {[%clk 0:00:10]} 40. Rc8 {[%clk 0:00:51]}  Qxc8 {[%clk 0:00:10]} 41. Qxc8 {[%clk 0:00:52]}  hxg5 {[%clk 0:00:11]} 42. Bxg5 {[%clk 0:00:52]} 1-0


[Site "https://www.chess.com"]

[Event "Titled Tuesday Blitz July 27 2021"]
[White "Quintiliano Pinto, Renato R."]
[Black "Poormosavi, Seyed Kian"]
[WhiteFideId "2117568"]
[BlackFideId "12585807"]
[WhiteElo "2439"]
[BlackElo "2134"]
[Result "0-1"]
[Round "06"]
[TimeControl "180+1"]
[Date "2021.07.27"]
[WhiteClock "0:00:02"]
[BlackClock "0:00:18"]

1. Nf3 {[%clk 0:03:00]}  Nf6 {[%clk 0:02:53]} 2. c4 {[%clk 0:03:00]}  c5 {[%clk 0:02:48]} 3. Nc3 {[%clk 0:02:59]}  g6 {[%clk 0:02:48]} 4. g3 {[%clk 0:02:59]}  Bg7 {[%clk 0:02:47]} 5. Bg2 {[%clk 0:02:59]}  O-O {[%clk 0:02:48]} 6. O-O {[%clk 0:03:00]}  Nc6 {[%clk 0:02:42]} 7. d4 {[%clk 0:02:59]}  cxd4 {[%clk 0:02:43]} 8. Nxd4 {[%clk 0:03:00]}  d6 {[%clk 0:02:41]} 9. e3 {[%clk 0:02:42]}  Bg4 {[%clk 0:02:31]} 10. Qd2 {[%clk 0:02:29]}  Qc8 {[%clk 0:02:30]} 11. b3 {[%clk 0:02:26]}  Bh3 {[%clk 0:02:26]} 12. Bb2 {[%clk 0:02:26]}  Bxg2 {[%clk 0:02:22]} 13. Kxg2 {[%clk 0:02:27]}  Rd8 {[%clk 0:02:22]} 14. Rac1 {[%clk 0:02:19]}  Qg4 {[%clk 0:02:09]} 15. h3 {[%clk 0:02:04]}  Qh5 {[%clk 0:02:08]} 16. Nde2 {[%clk 0:01:28]}  a6 {[%clk 0:01:28]} 17. Nf4 {[%clk 0:01:13]}  Qa5 {[%clk 0:01:27]} 18. a3 {[%clk 0:01:12]}  b5 {[%clk 0:01:11]} 19. b4 {[%clk 0:01:10]}  Qb6 {[%clk 0:01:11]} 20. Ncd5 {[%clk 0:00:57]}  Nxd5 {[%clk 0:01:08]} 21. Nxd5 {[%clk 0:00:37]}  Qb7 {[%clk 0:01:08]} 22. Bxg7 {[%clk 0:00:36]}  Kxg7 {[%clk 0:01:02]} 23. e4 {[%clk 0:00:21]}  Ne5 {[%clk 0:00:58]} 24. cxb5 {[%clk 0:00:12]}  e6 {[%clk 0:00:50]} 25. f4 {[%clk 0:00:05]}  exd5 {[%clk 0:00:48]} 26. fxe5 {[%clk 0:00:05]}  dxe4 {[%clk 0:00:48]} 27. Qf4 {[%clk 0:00:05]}  dxe5 {[%clk 0:00:38]} 28. Qxe5+ {[%clk 0:00:05]}  Kg8 {[%clk 0:00:39]} 29. Rc7 {[%clk 0:00:05]}  Qxb5 {[%clk 0:00:28]} 30. Qxb5 {[%clk 0:00:02]}  axb5 {[%clk 0:00:29]} 31. Rfxf7 {[%clk 0:00:02]}  Rd2+ {[%clk 0:00:25]} 32. Kf1 {[%clk 0:00:02]}  Rxa3 {[%clk 0:00:18]} 33. Rg7+ {[%clk 0:00:02]}  Kf8 {[%clk 0:00:18]} 0-1


[Site "https://www.chess.com"]